bitfinex/quotes_ETHUSD_20251122
["timestamp","ask_amount","ask_price","bid_price","bid_amount"]
[1763807035048,0.4537,2723.7,2723.6,0.001]
[1763807035253,0.4537,2723.7,2723.6,0.125]
[1763807035418,0.9357,2723.7,2723.6,0.001]
[1763807035911,0.9357,2723.7,2723.6,0.125]
[1763807036834,1.40166871,2723.7,2723.6,0.125]
[1763807037535,1.40166871,2723.7,2723.6,0.001]
[1763807037741,1.40166871,2723.7,2723.6,0.125]
[1763807040448,1.40166871,2723.7,2723.3,0.001]
[1763807040449,0.9357,2723.6,2723.3,0.001]
[1763807040658,0.4537,2723.4,2723.3,0.001]
[1763807041019,0.9357,2723.4,2723.3,0.001]
[1763807041211,0.9357,2723.4,2723.3,0.125]
[1763807043849,0.9357,2723.4,2723.3,0.001]
[1763807044170,1.31249664,2723.3,2723.2,0.001]
[1763807044319,2.49610292,2723.3,2723.2,0.124]
[1763807044518,0.4537,2723.1,2722.5,0.001]
[1763807044722,0.5049,2722.6,2722.5,0.001]
[1763807044943,0.5049,2722.6,2722.5,0.125]
[1763807045269,0.9869,2722.6,2722.5,0.001]
[1763807045437,0.9869,2722.6,2722.5,0.125]
[1763807047073,0.9869,2722.6,2722.5,0.001]
[1763807047426,0.9869,2722.6,2722.5,0.125]
[1763807047958,1.43843871,2722.6,2722.5,0.125]
[1763807048174,1.43843871,2722.6,2722.5,0.001]
[1763807048467,2.75093535,2722.6,2722.5,0.124]
[1763807048763,6.27942245,2722.6,2722.5,0.124]
[1763807048964,3.5284871,2722.4,2722.0,0.001]
[1763807049276,4.64172935,2722.4,2722.3,0.125]
[1763807049446,5.11112935,2722.4,2722.3,0.125]
[1763807051365,5.11112935,2722.4,2722.3,0.001]
[1763807051573,5.11112935,2722.4,2722.3,0.125]
[1763807053545,6.01812199,2722.4,2722.3,0.125]
[1763807053771,6.01812199,2722.4,2722.3,0.001]
[1763807054173,6.01812199,2722.4,2722.3,0.125]
[1763807054590,6.42362599,2722.4,2722.3,0.001]
[1763807058748,10.09939798,2722.4,2722.3,0.001]
[1763807067465,10.67596645,2722.4,2722.3,0.001]
[1763807067666,1.31249664,2722.3,2722.0,0.001]
[1763807067886,7.81301374,2722.1,2722.0,0.001]
[1763807068275,9.32417084,2722.1,2722.0,0.001]
[1763807068475,24.43718448,2722.1,2722.0,0.001]
[1763807068679,22.89442948,2722.1,2722.0,0.001]
[1763807068874,25.29063209,2722.1,2722.0,0.001]
[1763807069302,25.29431109,2722.1,2722.0,0.001]
[1763807069698,17.26866399,2722.1,2722.0,0.001]
[1763807070087,20.79715109,2722.1,2722.0,0.001]
[1763807070482,20.91422899,2722.1,2722.0,0.001]
[1763807070906,24.44271609,2722.1,2722.0,0.001]
[1763807071505,24.54557409,2722.1,2722.0,0.001]
[1763807072075,8.964291,2721.9,2721.7,0.001]
[1763807072307,8.59386684,2721.8,2721.7,0.001]
[1763807072606,12.80442584,2721.8,2721.7,0.001]
[1763807072904,1.31249664,2721.5,2721.4,0.001]
[1763807073107,1.31249664,2721.5,2721.0,0.001]
[1763807073108,18.26047974,2721.5,2721.0,0.001]
[1763807073311,4.4192911,2721.1,2721.0,0.001]
[1763807073476,8.85477084,2721.1,2721.0,0.001]
[1763807073682,9.32417084,2721.1,2721.0,0.001]
[1763807074406,9.32417084,2721.1,2720.8,0.001]
[1763807074407,11.895855,2720.9,2720.8,0.001]
[1763807074621,11.895855,2720.9,2719.0,0.124]
[1763807074622,11.895855,2720.9,2719.2,0.3231]
[1763807074623,0.405504,2720.8,2719.2,0.3231]
[1763807074808,1.31249664,2719.8,2719.2,0.3231]
[1763807074977,1.31249664,2719.8,2719.4,0.141]
[1763807075180,0.4694,2720.3,2719.7,0.3231]
[1763807075512,0.90699264,2720.1,2719.7,0.3231]
[1763807075883,0.90699264,2720.1,2719.7,0.2731]
[1763807076333,0.90699264,2719.9,2719.4,0.2901]
[1763807076609,0.90699264,2719.9,2719.6,0.124]
[1763807076838,0.405504,2720.3,2719.8,0.2731]
[1763807077119,1.88952789,2720.3,2719.4,0.017]
[1763807077328,0.90699264,2720.0,2719.5,0.124]
[1763807077710,1.37259264,2720.0,2719.5,0.124]
[1763807077915,1.37259264,2720.0,2719.4,0.017]
[1763807077916,0.4538,2719.6,2719.4,0.017]
[1763807078102,1.053404,2719.9,2719.4,0.017]
[1763807078303,1.053404,2719.9,2719.5,0.2731]
[1763807078530,1.16322595,2719.9,2719.4,0.017]
[1763807078821,8.24114306,2721.8,2719.4,0.2901]
[1763807078822,0.405504,2720.0,2719.4,0.2901]
[1763807079026,1.08929264,2720.1,2719.4,0.2901]
[1763807079235,1.08929264,2720.1,2719.4,0.017]
[1763807079236,0.405504,2720.0,2719.4,0.017]
[1763807079533,1.31249664,2719.8,2719.4,0.017]
[1763807079705,1.86968859,2719.8,2719.4,0.017]
[1763807080613,0.405504,2719.9,2719.4,0.017]
[1763807081433,0.405504,2720.0,2719.4,0.141]
[1763807081596,0.57693771,2719.8,2719.4,0.141]
[1763807081796,0.57693771,2719.8,2719.4,0.017]
[1763807082013,0.57693771,2719.8,2719.4,0.141]
[1763807083691,0.4656,2719.9,2719.4,0.141]
[1763807083892,0.68894966,2719.9,2719.4,0.141]
[1763807084093,0.90699264,2719.8,2719.5,0.124]
[1763807084339,0.4538,2719.6,2719.5,0.124]
[1763807084726,0.4538,2719.6,2719.4,0.141]
[1763807085240,0.4538,2719.6,2719.4,0.017]
[1763807085441,0.4538,2719.6,2719.4,0.141]
[1763807085909,0.90699264,2719.8,2719.5,0.2731]
[1763807086840,1.48395282,2719.8,2719.5,0.2731]
[1763807088068,1.70709312,2719.8,2719.4,0.141]
[1763807088211,1.04256018,2719.8,2719.4,0.141]
[1763807088639,1.04256018,2719.8,2719.5,0.124]
[1763807089143,0.57696018,2719.8,2719.5,0.124]
[1763807089311,0.57696018,2719.8,2719.7,0.2731]
[1763807090354,0.57696018,2719.8,2719.7,0.124]
[1763807090355,0.4538,2719.8,2719.7,0.124]
[1763807091412,0.871104,2720.2,2719.7,0.2731]
[1763807091613,0.871104,2720.2,2719.8,0.124]
[1763807092028,0.4538,2719.9,2719.8,0.124]
[1763807092438,0.4656,2720.1,2719.8,0.124]
[1763807093317,0.4538,2719.9,2719.8,0.124]
[1763807093953,0.2751,2720.3,2719.8,0.3971]
[1763807094129,0.871104,2720.2,2719.8,0.3971]
[1763807094647,0.4656,2720.2,2719.8,0.3971]
[1763807095039,0.002,2720.3,2719.9,0.124]
[1763807095587,0.002,2720.3,2720.2,0.3471]
[1763807095719,0.002,2720.3,2720.2,0.2731]
[1763807096119,0.002,2720.3,2720.2,0.5462]
[1763807098424,0.002,2720.3,2720.2,4.34002289]
[1763807098652,0.002,2720.3,2720.2,4.78142518]
[1763807099035,0.002,2720.3,2720.2,4.90542518]
[1763807099880,0.002,2720.3,2720.2,0.2731]
[1763807100058,0.4558,2720.3,2720.2,0.124]
[1763807100262,0.9214,2720.3,2719.4,3.81182289]
[1763807100470,0.4538,2719.8,2719.5,0.124]
[1763807101052,0.4538,2719.8,2719.4,3.81182289]
[1763807101261,0.4538,2719.8,2719.4,0.42649229]
[1763807101469,0.4538,2719.8,2719.5,0.124]
[1763807101470,0.9194,2719.8,2719.5,0.124]
[1763807101648,0.9194,2719.8,2719.6,0.124]
[1763807101856,0.4538,2719.8,2719.6,0.124]
[1763807102166,0.4538,2719.7,2719.6,0.124]
[1763807102989,0.4538,2719.7,2719.4,0.018]
[1763807103191,0.4538,2719.7,2719.6,0.124]
[1763807103560,0.9194,2719.7,2719.6,0.124]
[1763807103758,0.4538,2719.7,2719.6,0.124]
[1763807103961,0.9194,2719.7,2719.6,0.124]
[1763807104467,0.9194,2719.7,2719.4,0.018]
[1763807104672,0.859304,2719.5,2719.4,0.018]
[1763807104870,6.74436333,2719.5,2719.4,0.018]
[1763807105078,7.35741979,2719.5,2719.4,0.018]
[1763807105275,7.35741979,2719.5,2716.4,4.60845027]
[1763807105276,0.405504,2719.1,2716.4,4.60845027]
[1763807105473,0.6361,2717.4,2716.9,0.16217397]
[1763807105660,0.6361,2717.4,2717.0,0.01469732]
[1763807105858,0.6361,2717.4,2716.2,0.124]
[1763807105859,2.729325,2717.1,2716.2,0.124]
[1763807106075,0.9370957,2716.1,2716.0,0.06606803]
[1763807106272,0.9370957,2716.1,2714.9,0.2712]
[1763807106273,0.9370957,2716.1,2714.9,0.0931]
[1763807106495,1.08929264,2717.4,2716.0,0.1781]
[1763807106496,0.4796,2716.7,2716.0,0.1781]
[1763807106695,4.10989092,2717.3,2716.0,3.90874038]
[1763807106696,0.4796,2717.2,2716.0,3.90874038]
[1763807106990,0.4796,2717.2,2716.1,0.63077404]
[1763807107192,0.1823,2717.4,2716.0,0.11491749]
[1763807107394,5.02410384,2716.9,2715.4,0.45709896]
[1763807107557,1.3796,2717.3,2715.8,0.125]
[1763807107761,2.210347,2717.0,2715.8,0.125]
[1763807107962,0.4796,2717.2,2715.8,0.125]
[1763807107963,0.31173396,2716.9,2715.8,0.125]
[1763807108162,0.31173396,2716.9,2714.9,0.0931]
[1763807108163,0.405504,2715.8,2714.9,0.0931]
[1763807108397,0.6528,2715.9,2715.4,0.125]
[1763807108594,0.6528,2715.9,2714.9,0.0931]
[1763807108595,0.6649,2715.9,2714.9,0.0931]
[1763807108781,0.6649,2715.9,2715.0,0.075]
[1763807109095,0.4796,2716.3,2715.1,0.90699264]
[1763807109299,0.5778785,2715.7,2715.2,0.125]
[1763807109459,0.405504,2715.8,2715.2,0.125]
[1763807109803,0.405504,2715.8,2714.2,0.4796]
[1763807109804,0.4675,2715.3,2714.2,0.1149]
[1763807110094,0.57797856,2715.6,2714.5,5.02410384]
[1763807110292,0.57797856,2715.6,2715.5,0.1548]
[1763807110495,0.4796,2716.4,2715.8,0.001]
[1763807110694,0.1853,2717.0,2715.8,0.001]
[1763807110695,0.590804,2715.9,2715.8,0.001]
[1763807110925,0.590804,2715.9,2712.1,0.03687]
[1763807110926,0.405504,2714.2,2712.1,0.03687]
[1763807111213,0.6528,2714.3,2713.1,0.075]
[1763807111214,0.405504,2714.0,2713.1,0.075]
[1763807111561,1.0,2714.4,2713.3,5.02410384]
[1763807111763,0.405504,2715.5,2713.4,1.53690302]
[1763807111958,0.1853,2714.6,2713.4,5.65401422]
[1763807112273,0.00609444,2714.0,2713.5,0.126]
[1763807112483,0.00609444,2714.0,2713.8,5.02410384]
[1763807112682,0.00609444,2714.0,2713.9,0.1149]
[1763807112979,0.00609444,2714.0,2713.4,0.62991038]
[1763807113179,0.00609444,2714.0,2713.5,0.126]
[1763807113396,0.00609444,2714.0,2713.9,0.1149]
[1763807113873,0.00609444,2714.0,2713.9,0.2298]
[1763807114259,0.1853,2715.3,2713.9,0.2298]
[1763807114508,0.1853,2715.3,2714.2,5.02410384]
[1763807114822,5.06092148,2716.9,2714.6,5.02410384]
[1763807114823,0.4796,2715.8,2714.6,5.02410384]
[1763807115125,0.4796,2715.8,2714.7,0.126]
[1763807115603,0.1853,2715.9,2714.7,0.2409]
[1763807115903,0.1853,2715.9,2714.8,0.126]
[1763807115904,0.6649,2715.9,2714.8,0.126]
[1763807116273,0.1853,2715.9,2714.9,0.1149]
[1763807116476,0.4796,2716.2,2714.9,0.1149]
[1763807116691,0.4796,2716.2,2714.9,5.13900384]
[1763807116889,0.4796,2716.2,2715.0,0.52650038]
[1763807117121,0.4796,2716.2,2715.0,0.64140038]
[1763807117414,0.4796,2716.2,2715.1,0.0399]
[1763807117415,2.244312,2716.1,2715.1,0.0399]
[1763807117612,0.03681764,2716.0,2715.1,0.126]
[1763807117909,0.90699264,2715.8,2715.1,0.126]
[1763807118110,0.03681764,2715.7,2715.1,0.126]
[1763807118297,0.1853,2715.9,2715.1,0.126]
[1763807118629,0.4796,2715.8,2714.9,0.0399]
[1763807118928,0.03681764,2715.7,2715.0,0.126]
[1763807119103,3.935968,2715.6,2715.0,0.126]
[1763807119411,0.39727856,2715.5,2715.0,0.126]
[1763807119585,0.4796,2715.8,2715.1,0.126]
[1763807119990,0.1853,2715.9,2715.1,0.126]
[1763807120325,0.4796,2715.8,2715.2,0.126]
[1763807121181,0.03681764,2715.7,2715.2,0.126]
[1763807121692,0.51641764,2715.7,2715.2,0.126]
[1763807122093,0.1853,2715.9,2715.2,0.126]
[1763807122907,0.57797081,2716.4,2715.8,0.1149]
[1763807123412,0.57797081,2716.4,2715.9,0.126]
[1763807123585,0.57797081,2716.4,2715.9,0.2409]
[1763807123793,0.57797081,2716.4,2716.3,0.1149]
[1763807125000,0.57797081,2716.4,2716.3,0.126]
[1763807125201,0.57797081,2716.4,2716.3,0.2409]
[1763807125401,2.249026,2716.3,2715.6,0.14757452]
[1763807125601,1.52507081,2716.4,2714.7,0.0399]
[1763807125602,0.41422732,2716.2,2715.5,0.043]
[1763807125815,0.90699264,2716.1,2715.5,0.043]
[1763807126015,0.57797081,2716.4,2715.5,0.043]
[1763807126312,0.57797081,2716.4,2715.5,0.1579]
[1763807127317,0.57797081,2716.4,2715.6,0.1149]
[1763807128313,0.4796,2716.8,2715.6,0.1149]
[1763807128314,0.002,2716.3,2715.6,0.1149]
[1763807128516,0.002,2716.3,2715.7,0.51820038]
[1763807128715,0.002,2716.3,2716.2,0.1149]
[1763807128883,0.002,2716.3,2716.2,0.2409]
[1763807129079,0.002,2716.3,2716.2,0.3558]
[1763807129514,0.002,2716.3,2716.2,0.1149]
[1763807129715,0.002,2716.3,2716.2,0.2409]
[1763807130618,0.002,2716.3,2716.2,0.126]
[1763807131587,0.002,2716.3,2715.5,0.90699264]
[1763807131790,0.002,2716.3,2715.6,0.126]
[1763807132001,0.002,2716.3,2715.7,0.1149]
[1763807132203,0.002,2716.3,2715.6,0.126]
[1763807132204,0.4796,2716.2,2715.6,0.126]
[1763807132412,0.03681764,2716.1,2715.5,0.126]
[1763807132615,0.002,2716.3,2715.5,0.126]
[1763807132799,0.002,2716.3,2715.6,0.1149]
[1763807132998,0.002,2716.3,2715.7,0.52650038]
[1763807133400,0.002,2716.3,2715.8,0.127]
[1763807133625,0.002,2716.3,2715.3,0.1149]
[1763807133798,0.002,2716.3,2715.4,0.127]
[1763807134122,0.4816,2716.3,2715.4,0.127]
[1763807134707,0.002,2716.3,2716.2,0.1149]
[1763807134927,0.002,2716.3,2716.2,0.2419]
[1763807135142,0.002,2716.3,2715.7,0.1149]
[1763807135291,0.002,2716.3,2716.2,0.127]
[1763807135487,0.002,2716.3,2716.2,0.3568]
[1763807135692,0.002,2716.3,2716.2,0.76789038]
[1763807135922,0.002,2716.3,2716.2,1.37449038]
[1763807137109,0.002,2716.3,2716.2,6.27159422]
[1763807137531,0.002,2716.3,2716.2,6.39859422]
[1763807137918,0.002,2716.3,2716.2,1.24749038]
[1763807138219,0.002,2716.3,2716.2,0.8364]
[1763807138729,0.002,2716.3,2716.2,0.5945]
[1763807139098,0.002,2716.3,2716.2,0.7215]
[1763807140259,0.002,2716.3,2715.7,0.90699264]
[1763807140260,0.002,2716.3,2715.7,4.74455569]
[1763807140403,0.002,2716.3,2715.3,4.85945569]
[1763807140760,0.002,2716.3,2715.4,0.127]
[1763807140913,0.4791,2716.3,2715.4,0.127]
[1763807141110,0.4791,2716.3,2715.4,0.6041]
[1763807142425,0.4791,2716.3,2715.4,0.4771]
[1763807142621,0.4791,2716.3,2715.5,0.127]
[1763807143130,0.002,2716.3,2715.7,4.74455569]
[1763807143337,0.4771,2716.2,2715.4,0.4771]
[1763807143520,0.1903,2715.6,2715.5,0.127]
[1763807144036,1.155,2715.6,2715.5,0.127]
[1763807144233,0.6779,2715.6,2714.9,0.6674]
[1763807144434,0.6779,2715.6,2715.0,0.127]
[1763807144645,0.1903,2715.8,2715.0,0.127]
[1763807144945,0.4771,2715.9,2715.0,0.127]
[1763807144946,0.1903,2715.9,2715.2,4.74455569]
[1763807145126,0.4771,2716.2,2715.2,4.74455569]
[1763807145320,0.002,2716.3,2715.6,4.74455569]
[1763807145516,0.002,2716.3,2715.7,0.127]
[1763807147040,0.002,2716.3,2715.7,0.2419]
[1763807147440,0.002,2716.3,2715.7,0.127]
[1763807147607,0.002,2716.3,2715.6,4.85945569]
[1763807147807,0.002,2716.3,2715.6,4.74455569]
[1763807148007,0.002,2716.3,2715.7,0.127]
[1763807148008,0.4791,2716.3,2715.7,0.127]
[1763807148822,0.002,2716.3,2716.2,0.1149]
[1763807149041,0.002,2716.3,2716.2,0.2419]
[1763807149208,0.002,2716.3,2716.2,0.127]
[1763807149812,0.002,2716.3,2716.0,0.14755546]
[1763807150050,0.002,2716.3,2716.1,0.127]
[1763807150414,0.4791,2716.3,2716.1,0.127]
[1763807150731,0.002,2716.3,2716.1,0.127]
[1763807151746,0.002,2716.3,2716.2,0.127]
[1763807152617,0.9667,2716.3,2716.2,0.127]
[1763807155116,7.018486,2716.2,2714.7,0.94689264]
[1763807155320,0.90699264,2715.9,2714.8,0.127]
[1763807155537,2.21678445,2716.1,2714.8,0.127]
[1763807155538,0.03681764,2715.8,2714.8,0.127]
[1763807155773,0.1903,2715.8,2714.8,0.127]
[1763807155937,0.4771,2715.7,2714.8,0.127]
[1763807156936,0.51391764,2715.7,2714.8,0.127]
[1763807157524,0.4771,2715.7,2714.8,0.127]
[1763807157954,0.51391764,2715.7,2714.8,0.127]
[1763807158348,0.4771,2715.7,2714.8,0.127]
[1763807158729,0.1903,2715.8,2714.8,0.127]
[1763807158730,0.002,2716.3,2715.6,0.3689]
[1763807158934,0.002,2716.3,2715.7,0.3689]
[1763807159356,0.57781188,2716.2,2715.7,0.3689]
[1763807160234,0.002,2716.3,2715.7,5.11345569]
[1763807160436,0.002,2716.3,2715.7,5.63750126]
[1763807161255,0.002,2716.3,2715.7,5.87940126]
[1763807161455,0.002,2716.3,2715.7,0.89294557]
[1763807162843,0.4791,2716.3,2715.6,0.127]
[1763807163050,0.03681764,2716.2,2715.7,0.127]
[1763807163304,0.002,2716.3,2715.8,4.74455569]
[1763807163422,0.57781253,2716.2,2715.8,4.74455569]
[1763807163622,0.57781253,2716.2,2715.7,0.127]
[1763807163961,1.05491253,2716.2,2715.7,0.127]
[1763807164538,0.57781253,2716.2,2715.7,0.127]
[1763807165040,0.57781253,2716.2,2715.7,0.3689]
[1763807165854,0.57781253,2716.2,2715.8,0.2419]
[1763807166422,0.57781253,2716.2,2715.8,4.98645569]
[1763807166662,0.002,2716.3,2716.1,0.2419]
[1763807166861,0.002,2716.3,2716.2,0.127]
[1763807167098,0.002,2716.3,2715.8,4.74455569]
[1763807167227,0.4986,2716.2,2715.9,0.127]
[1763807167428,0.4663,2716.0,2715.9,0.127]
[1763807167628,0.002,2716.3,2715.9,0.127]
[1763807168165,0.5006,2716.3,2715.9,0.127]
[1763807168971,0.002,2716.3,2715.9,0.127]
[1763807169342,0.5006,2716.3,2715.9,0.127]
[1763807169545,0.4663,2716.0,2715.2,4.98645569]
[1763807169776,0.4663,2716.0,2715.3,0.127]
[1763807169777,0.22771764,2715.9,2715.3,0.127]
[1763807170776,0.1909,2715.9,2715.4,0.127]
[1763807170986,0.03681764,2715.8,2715.4,0.127]
[1763807171582,0.03681764,2715.8,2715.5,0.127]
[1763807171992,0.6895,2715.9,2715.5,0.127]
[1763807172156,0.6395,2715.9,2715.5,0.127]
[1763807173289,0.002,2716.3,2715.5,0.4189]
[1763807173789,0.4986,2716.2,2715.5,0.127]
[1763807173987,0.4986,2716.2,2715.6,0.127]
[1763807175386,0.002,2716.3,2715.6,0.127]
[1763807177790,0.53741764,2716.3,2715.6,0.127]
[1763807177996,0.53741764,2716.3,2715.4,0.05]
[1763807178197,0.53741764,2716.3,2715.7,0.126]
[1763807179103,0.6572,2715.8,2715.3,4.74455569]
[1763807179273,0.03681764,2715.7,2715.0,4.74455569]
[1763807179468,0.4986,2715.7,2715.1,0.126]
[1763807179686,0.4986,2715.7,2715.0,4.74455569]
[1763807179881,0.4986,2715.7,2715.2,0.126]
[1763807180498,0.57787119,2715.6,2715.2,0.126]
[1763807180904,1.07647119,2715.6,2715.2,0.126]
[1763807181297,0.57787119,2715.6,2715.2,0.126]
[1763807182411,1.07647119,2715.6,2715.2,0.126]
[1763807182597,1.07647119,2715.6,2714.9,0.126]
[1763807182598,0.4663,2715.3,2714.9,0.126]
[1763807182797,0.4663,2715.1,2714.9,0.126]
[1763807183178,0.4663,2715.0,2714.9,0.126]
[1763807184181,0.9649,2715.0,2714.9,0.126]
[1763807184380,0.4663,2715.0,2714.9,0.126]
[1763807184711,0.9649,2715.0,2714.9,0.126]
[1763807184912,0.9649,2715.0,2714.9,0.001]
[1763807185211,5.817214,2714.9,2714.6,0.127]
[1763807185375,0.6782114,2714.8,2714.6,0.127]
[1763807185577,0.4663,2714.7,2714.6,0.127]
[1763807185780,0.9649,2714.7,2714.6,0.127]
[1763807186435,0.4663,2714.7,2714.6,0.127]
[1763807186583,0.1909,2714.9,2714.6,0.127]
[1763807186783,0.6895,2714.9,2714.6,0.127]
[1763807186984,0.4986,2715.2,2714.6,0.127]
[1763807187612,0.03681764,2715.4,2714.6,0.127]
[1763807187824,0.6895,2715.8,2714.7,0.48715557]
[1763807188118,0.6895,2715.8,2714.9,4.74455569]
[1763807188501,0.6895,2715.8,2714.9,5.03745569]
[1763807188819,0.4986,2716.2,2715.5,0.3338]
[1763807189016,0.002,2716.3,2715.5,0.3338]
[1763807189017,0.002,2716.3,2715.5,0.4598]
[1763807189179,0.002,2716.3,2715.6,4.74455569]
[1763807189180,0.57784145,2716.1,2715.6,4.74455569]
[1763807189383,0.57784145,2716.1,2716.0,4.74455569]
[1763807189585,0.002,2716.3,2716.0,5.16345569]
[1763807189785,0.002,2716.3,2716.2,0.2929]
[1763807190186,0.002,2716.3,2716.2,0.5858]
[1763807191226,0.002,2716.3,2716.2,0.2929]
[1763807191389,0.002,2716.3,2716.2,0.5858]
[1763807191589,0.002,2716.3,2716.2,1.13643557]
[1763807192313,0.002,2716.3,2716.2,0.5858]
[1763807193442,0.002,2716.3,2716.1,0.05]
[1763807193646,0.002,2716.3,2715.7,0.52043557]
[1763807193647,0.002,2716.3,2716.2,0.126]
[1763807193812,0.9669,2716.3,2716.2,0.126]
[1763807194147,0.9669,2716.3,2716.2,0.127]
[1763807195012,0.002,2716.3,2716.2,0.127]
[1763807195214,0.9669,2716.3,2716.2,0.127]
[1763807195653,0.9669,2716.3,2715.1,5.03745569]
[1763807195814,0.49091764,2716.2,2715.2,0.126]
[1763807196155,0.4541,2716.2,2715.2,0.126]
[1763807196335,0.4541,2716.2,2715.0,0.05]
[1763807196535,0.4541,2716.2,2715.1,0.127]
[1763807197648,0.4541,2716.2,2715.2,0.03682969]
[1763807197857,0.002,2716.3,2715.3,0.52012854]
[1763807198027,0.002,2716.3,2715.4,0.2929]
[1763807198953,0.002,2716.3,2715.5,0.126]
[1763807199452,0.002,2716.3,2715.5,0.4189]
[1763807201358,0.002,2716.3,2715.6,0.2929]
[1763807201852,0.002,2716.3,2716.2,0.0409]
[1763807202017,0.002,2716.3,2716.2,0.4598]
[1763807203573,0.002,2716.3,2716.2,0.1669]
[1763807203723,0.002,2716.3,2716.2,0.126]
[1763807207077,0.002,2716.3,2716.2,0.4189]
[1763807208071,0.002,2716.3,2716.2,0.126]
[1763807208577,0.4988,2716.3,2716.2,0.126]
[1763807208886,0.9887,2716.3,2716.2,0.126]
[1763807209554,0.4988,2716.3,2716.2,0.126]
[1763807210469,0.9887,2716.3,2716.2,0.126]
[1763807210876,0.4988,2716.3,2716.2,0.126]
[1763807211236,0.002,2716.3,2716.2,0.126]
[1763807212289,0.9887,2716.3,2716.2,0.126]
[1763807212588,0.002,2716.3,2716.2,0.4189]
[1763807213387,0.002,2716.3,2716.2,0.7118]
[1763807215458,0.002,2716.3,2716.2,0.4189]
[1763807215810,0.002,2716.3,2716.2,0.126]
[1763807215959,0.002,2716.3,2716.2,0.4189]
[1763807216278,0.002,2716.3,2716.2,0.126]
[1763807217090,0.002,2716.3,2715.7,0.0409]
[1763807217291,0.002,2716.3,2715.8,0.53589463]
[1763807217478,0.002,2716.3,2715.8,0.66189463]
[1763807217682,0.002,2716.3,2716.2,0.2929]
[1763807218596,0.002,2716.3,2716.2,0.4189]
[1763807219696,0.002,2716.3,2716.2,0.126]
[1763807220595,0.002,2716.3,2715.9,0.2929]
[1763807220898,0.002,2716.3,2715.7,3.8489]
[1763807220899,0.4968,2716.0,2715.7,3.808]
[1763807221103,0.4968,2716.0,2715.5,0.0409]
[1763807221267,0.4968,2715.8,2715.6,0.126]
[1763807221695,0.9867,2715.8,2715.6,0.126]
[1763807221995,0.4899,2715.8,2715.7,0.126]
[1763807222398,0.9867,2715.8,2715.7,0.126]
[1763807228304,0.002,2716.3,2715.7,0.4189]
[1763807228492,0.002,2716.3,2715.8,0.2929]
[1763807229102,0.4598,2716.3,2715.8,0.2929]
[1763807229469,0.4598,2716.3,2715.9,0.126]
[1763807229704,0.4598,2716.3,2715.0,0.3429]
[1763807229705,0.6616,2715.9,2715.0,0.3429]
[1763807230012,0.6616,2715.9,2715.1,0.126]
[1763807230500,0.4598,2716.3,2715.1,0.4189]
[1763807230701,0.03681764,2716.2,2715.1,0.4189]
[1763807230900,0.03681764,2716.2,2715.2,0.2929]
[1763807231201,0.49461764,2716.2,2715.2,0.2929]
[1763807231507,0.4598,2716.3,2715.2,0.2929]
[1763807232105,0.4598,2716.3,2715.3,0.126]
[1763807232106,0.03681764,2716.2,2715.3,0.126]
[1763807232606,0.49461764,2716.2,2715.3,0.126]
[1763807233405,0.49461764,2716.2,2715.4,0.126]
[1763807233603,0.4578,2716.2,2715.4,0.126]
[1763807236403,0.4598,2716.2,2715.4,0.126]
[1763807236915,0.002,2716.2,2715.5,0.2929]
[1763807237525,0.6616,2715.6,2715.4,0.126]
[1763807237831,0.6616,2715.6,2715.5,0.126]
[1763807238593,1.1194,2715.6,2715.5,0.126]
[1763807239390,0.6616,2715.6,2715.5,0.126]
[1763807241391,0.1994,2715.9,2715.5,0.126]
[1763807241792,0.6572,2715.9,2715.5,0.126]
[1763807242932,0.4578,2715.8,2715.5,0.126]
[1763807247948,0.002,2716.2,2715.7,0.2929]
[1763807248098,0.002,2716.2,2715.8,0.2929]
[1763807249737,0.6616,2715.9,2715.0,0.05]
[1763807249970,0.4622,2715.6,2715.1,0.126]
[1763807250434,0.1994,2715.9,2715.5,0.2929]
[1763807250640,0.1994,2715.9,2715.1,0.4189]
[1763807250863,0.6572,2715.9,2715.1,0.4189]
[1763807251380,0.4578,2715.8,2715.1,0.126]
[1763807251581,0.49461764,2715.8,2715.1,0.126]
[1763807251753,0.4578,2715.8,2715.1,0.126]
[1763807252772,0.03681764,2715.7,2715.0,0.05]
[1763807253068,0.4578,2715.8,2715.1,0.126]
[1763807253268,0.4578,2715.7,2715.1,0.126]
[1763807253435,0.1994,2715.9,2715.1,0.126]
[1763807253773,0.1994,2715.9,2715.1,0.4189]
[1763807253774,0.6572,2715.9,2715.1,0.4189]
[1763807255072,0.6592,2715.9,2715.1,0.4189]
[1763807257070,0.50741764,2715.8,2715.1,0.126]
[1763807257249,0.50741764,2715.8,2715.2,0.126]
[1763807258039,0.477,2715.3,2715.2,0.126]
[1763807258471,0.9476,2715.3,2714.9,0.001]
[1763807258644,0.9476,2715.3,2715.0,0.126]
[1763807259177,0.03681764,2715.8,2715.0,0.126]
[1763807259178,0.477,2715.1,2715.0,0.126]
[1763807259672,0.4706,2715.4,2715.0,0.126]